bitfinex/quotes_SOLUSD_20250125
["timestamp","ask_amount","ask_price","bid_price","bid_amount"]
[1737797597386,23.776884,248.61,248.5,81.93]
[1737797597590,81.4,248.63,248.5,81.93]
[1737797597785,2.78,248.62,248.5,137.63]
[1737797597982,22.78,248.62,248.5,137.63]
[1737797598186,2.78,248.62,248.5,137.63]
[1737797598578,2.78,248.63,248.51,1.7865]
[1737797598889,2.78,248.63,248.53,7.1406]
[1737797599084,2.78,248.63,248.53,7.5428225]
[1737797599281,2.78,248.63,248.54,23.776884]
[1737797600482,2.78,248.63,248.55,4.0233]
[1737797600687,2.78,248.63,248.55,223.5233]
[1737797601488,2.78,248.73,248.56,30.10237878]
[1737797601697,2.78,248.75,248.56,249.60237878]
[1737797601874,2.78,248.75,248.56,249.200184]
[1737797602070,2.78,248.75,248.6,23.776884]
[1737797602285,0.0001,248.76,248.61,0.40207772]
[1737797602471,20.0001,248.76,248.61,219.90207772]
[1737797602673,20.0001,248.76,248.62,1.9003]
[1737797603099,0.0001,248.76,248.63,24.17895656]
[1737797603286,0.0001,248.76,248.64,4.0218]
[1737797603595,0.0001,248.76,248.66,7.2011]
[1737797603780,0.0001,248.76,248.67,0.40200187]
[1737797604381,0.0001,248.76,248.67,219.90200187]
[1737797604587,0.0001,248.76,248.67,223.5213]
[1737797605601,2.3931,248.81,248.67,223.5213]
[1737797606597,0.063,248.83,248.68,0.40197741]
[1737797606798,2.863,248.83,248.69,4.021]
[1737797606997,2.863,248.83,248.67,223.5212]
[1737797607303,2.863,248.83,248.67,219.5]
[1737797608800,0.063,248.83,248.69,1.9003]
[1737797609908,0.063,248.83,248.7,0.40196584]
[1737797610805,0.063,248.83,248.7,219.90196584]
[1737797611007,0.063,248.83,248.72,4.0205]
[1737797611200,0.063,248.83,248.73,0.4018884]
[1737797612094,0.063,248.83,248.72,219.5]
[1737797613404,20.0,248.82,248.72,81.9]
[1737797613914,0.063,248.83,248.72,81.9]
[1737797614491,0.063,248.83,248.73,0.40194252]
[1737797615419,0.063,248.83,248.72,223.5204]
[1737797618521,0.063,248.83,248.72,219.5]
[1737797620201,0.063,248.83,248.73,0.40194525]
[1737797621310,0.063,248.83,248.73,4.42224525]
[1737797621512,0.063,248.83,248.73,0.40194525]
[1737797622723,0.063,248.83,248.72,219.5]
[1737797629830,20.0,248.82,248.72,219.5]
[1737797631432,20.0,248.82,248.72,81.9]
[1737797632716,20.0,248.82,248.72,81.93]
[1737797633115,23.776884,248.81,248.72,81.93]
[1737797633425,20.0,248.78,248.72,81.93]
[1737797634842,0.063,248.83,248.72,81.93]
[1737797635137,2.78,248.82,248.72,81.93]
[1737797636315,22.78,248.82,248.72,81.93]
[1737797638043,20.0,248.78,248.72,0.03]
[1737797638630,20.0,248.74,248.72,0.03]
[1737797639339,20.0,248.7,248.63,1.8078]
[1737797639714,20.0,248.73,248.63,1.8078]
[1737797640343,43.776884,248.76,248.63,1.8078]
[1737797640515,43.776884,248.76,248.63,221.3078]
[1737797642722,2.78,248.75,248.63,221.3078]
[1737797643238,2.78,248.75,248.63,225.3297]
[1737797643429,2.78,248.75,248.64,0.40205059]
[1737797643635,1.71661868,248.84,248.64,24.17893459]
[1737797643836,2.78,248.8,248.64,243.67893459]
[1737797644036,2.78,248.8,248.64,243.276884]
[1737797644242,20.0,248.76,248.64,219.5]
[1737797645749,20.0,248.76,248.64,81.9]
[1737797646235,1.0,248.75,248.64,81.9]
[1737797646423,20.0,248.71,248.64,81.9]
[1737797647843,23.776884,248.74,248.63,0.03]
[1737797648043,43.776884,248.71,248.63,0.03]
[1737797650643,44.776884,248.71,248.63,0.03]
[1737797651233,20.0,248.67,248.63,0.03]
[1737797651539,2.78,248.66,248.63,0.03]
[1737797653828,20.0,248.69,248.63,81.93]
[1737797654224,1.59431734,248.79,248.63,219.53]
[1737797654424,2.78,248.78,248.65,1.9011]
[1737797655852,2.78,248.78,248.65,5.9227]
[1737797656046,2.78,248.78,248.65,225.4227]
[1737797656246,2.78,248.8,248.65,225.4227]
[1737797657646,3.78,248.8,248.65,221.4011]
[1737797658019,20.0,248.72,248.65,83.8011]
[1737797658546,36.089811,248.72,248.65,1.9011]
[1737797659250,36.089811,248.72,248.63,0.03]
[1737797659429,20.0,248.68,248.63,0.03]
[1737797661446,16.089811,248.72,248.63,0.03]
[1737797662939,20.0,248.68,248.63,0.03]
[1737797663634,2.78,248.67,248.63,0.03]
[1737797664466,20.0,248.64,248.63,0.0001]
[1737797665255,43.776884,248.64,248.63,3.298e-05]
[1737797666957,44.776884,248.64,248.63,3.298e-05]
[1737797667327,43.776884,248.64,248.63,3.298e-05]
[1737797669159,20.0,248.65,248.63,3.298e-05]
[1737797669364,2.78,248.64,248.63,3.298e-05]
[1737797669731,22.78,248.65,248.63,3.298e-05]
[1737797669932,2.78,248.65,248.63,3.298e-05]
[1737797670638,43.776884,248.64,248.63,3.298e-05]
[1737797672334,46.556884,248.64,248.63,3.298e-05]
[1737797677472,128.956884,248.64,248.63,3.298e-05]
[1737797678268,130.59305837,248.64,248.63,3.298e-05]
[1737797679166,49.19305837,248.64,248.63,3.298e-05]
[1737797680572,20.0,248.51,248.5,0.0001]
[1737797680793,46.556884,248.51,248.5,0.0001]
[1737797681293,47.556884,248.51,248.5,0.0001]
[1737797681467,2.78,248.51,248.5,0.0001]
[1737797681784,22.78,248.51,248.5,0.0001]
[1737797682881,2.78,248.51,248.5,0.0001]
[1737797685386,26.556884,248.51,248.5,0.0001]
[1737797687070,2.78,248.51,248.5,0.0001]
[1737797689769,20.0,248.53,248.5,0.0001]
[1737797690474,1.62877431,248.62,248.5,81.9001]
[1737797690782,111.4,248.64,248.51,6.9017]
[1737797690961,2.78,248.63,248.51,6.9017]
[1737797691157,2.78,248.63,248.51,88.8017]
[1737797691591,20.0,248.62,248.51,88.8017]
[1737797692677,20.0,248.61,248.51,92.8256]
[1737797692878,20.0,248.61,248.51,88.8017]
[1737797693383,20.0,248.62,248.51,226.4017]
[1737797693772,2.78,248.63,248.51,226.4017]
[1737797694281,20.0,248.59,248.51,226.4017]
[1737797695463,20.0,248.58,248.51,226.4017]
[1737797696695,20.0,248.58,248.51,88.8017]
[1737797698879,20.0,248.59,248.51,88.8017]
[1737797699591,0.063,248.62,248.51,88.8017]
[1737797700184,20.063,248.62,248.51,88.8017]
[1737797702692,20.063,248.62,248.51,226.4017]
[1737797702890,0.063,248.62,248.52,0.40230501]
[1737797703590,0.063,248.62,248.51,230.4256]
[1737797704291,0.063,248.62,248.51,226.4017]
[1737797705691,0.063,248.62,248.51,230.4256]
[1737797705894,0.063,248.62,248.52,0.40228833]
[1737797706894,0.063,248.62,248.52,4.42598833]
[1737797707289,0.063,248.62,248.52,223.92598833]
[1737797707498,0.063,248.62,248.52,223.5237]
[1737797707684,0.063,248.62,248.54,1.8509]
[1737797707992,0.063,248.62,248.56,7.2679]
[1737797708175,0.063,248.62,248.57,0.40213578]
[1737797708595,0.063,248.62,248.58,1.8509]
[1737797708794,0.063,248.65,248.6,4.0225]
[1737797708981,0.063,248.65,248.63,23.776884]
[1737797709183,0.063,248.65,248.64,0.40201308]
[1737797709899,2.863,248.78,248.64,0.40201308]
[1737797710097,2.863,248.78,248.64,219.90201308]
[1737797710295,2.863,248.78,248.64,219.5]
[1737797710998,2.863,248.78,248.65,23.776884]
[1737797711292,2.863,248.78,248.66,0.40197587]
[1737797711600,2.863,248.78,248.64,219.5]
[1737797712894,2.863,248.78,248.65,0.40204726]
[1737797713609,2.863,248.78,248.64,219.5]
[1737797713610,20.0,248.77,248.64,219.5]
[1737797714677,20.0,248.73,248.64,219.5]
[1737797714912,20.0,248.73,248.64,81.9]
[1737797717886,20.0,248.69,248.62,1.8509]
[1737797719190,1.9349,248.78,248.62,1.8509]
[1737797719398,1.9349,248.78,248.62,221.3509]
[1737797719399,2.78,248.77,248.62,221.3509]
[1737797719686,20.0,248.73,248.62,221.3509]
[1737797721314,0.063,248.69,248.62,221.3509]
[1737797725004,0.063,248.69,248.62,83.7509]
[1737797729412,0.063,248.69,248.62,221.3509]
[1737797733411,0.063,248.69,248.62,221.3809]
[1737797737918,20.063,248.69,248.62,219.53]
[1737797744218,20.0,248.65,248.62,219.53]
[1737797744422,20.0,248.65,248.62,81.93]
[1737797748615,23.776884,248.64,248.62,0.03]
[1737797748828,23.776884,248.66,248.62,0.03]
[1737797749006,2.74,248.68,248.62,81.93]
[1737797749611,20.0,248.67,248.62,81.93]
[1737797750324,20.0,248.63,248.62,0.03]
[1737797755330,20.0,248.63,248.56,137.6]
[1737797755509,43.776884,248.64,248.56,81.9]
[1737797758435,44.776884,248.64,248.5,90.8226]
[1737797758743,1.0,248.63,248.5,83.7114]
[1737797758940,1.0,248.63,248.5,81.9001]
[1737797759245,20.0,248.58,248.5,81.9001]
[1737797759432,20.0,248.54,248.5,81.9001]
[1737797760944,2.74,248.55,248.5,81.9001]
[1737797763550,81.4,248.62,248.5,81.9001]
[1737797763853,2.74,248.61,248.5,81.9001]
[1737797764042,20.0,248.59,248.5,81.9001]
[1737797764238,23.776884,248.6,248.5,81.9001]
[1737797764427,20.0,248.57,248.5,81.9001]
[1737797769549,20.0,248.53,248.5,0.0001]
[1737797771747,23.776884,248.52,248.5,0.0001]
[1737797772431,43.776884,248.52,248.5,0.0001]
[1737797772636,23.776884,248.51,248.5,0.0001]
[1737797772839,23.776884,248.52,248.5,0.0001]
[1737797773335,43.776884,248.51,248.47,0.0001]
[1737797775356,3.51886517,248.54,248.47,0.0001]
[1737797775661,22.74,248.53,248.47,0.0001]
[1737797776163,20.0,248.5,248.47,0.0001]
[1737797777260,20.0,248.49,248.47,0.0001]
[1737797777478,23.776884,248.48,248.47,0.0001]
[1737797777765,43.776884,248.45,248.44,0.0001]
[1737797780674,20.0,248.41,248.37,0.03]
[1737797780878,20.0,248.41,248.33,83.7055]
[1737797780879,20.0,248.37,248.33,81.9]
[1737797781265,2.74,248.36,248.33,81.9]
[1737797781473,2.74,248.36,248.27,228.5744]
[1737797782175,2.74,248.36,248.27,90.9744]
[1737797783773,2.24,248.36,248.27,90.9744]
[1737797785066,2.24,248.36,248.27,83.7497]
[1737797785270,20.0,248.32,248.27,83.7497]
[1737797787878,2.24,248.36,248.27,83.7497]
[1737797788582,20.0,248.32,248.27,83.7497]
[1737797791284,23.776884,248.35,248.22,0.03]
[1737797791487,2.24,248.36,248.22,81.93]
[1737797791663,23.776884,248.35,248.22,81.93]
[1737797792258,24.776884,248.33,248.22,81.93]
[1737797792475,23.776884,248.33,248.22,81.93]
[1737797792874,7.3079,248.35,248.22,81.93]
[1737797793071,23.776884,248.34,248.22,81.93]
[1737797793383,20.0,248.31,248.22,81.93]
[1737797798486,43.776884,248.31,248.22,81.93]
[1737797803471,23.776884,248.3,248.22,81.93]
[1737797803677,23.776884,248.26,248.22,0.03]
[1737797803887,20.0,248.23,248.22,0.03]
[1737797805895,20.0,248.23,248.14,144.8247]
[1737797805896,23.776884,248.22,248.14,219.5]
[1737797806098,23.776884,248.22,248.14,81.9]
[1737797806295,20.0,248.18,248.14,81.9]
[1737797807094,2.74,248.23,248.14,81.9]
[1737797808386,2.74,248.23,248.14,85.9298]
[1737797808692,2.74,248.23,248.14,81.9]
[1737797814897,23.776884,248.22,248.14,81.9]
[1737797815078,20.0,248.19,248.14,81.9]
[1737797816878,1.64753043,248.28,248.14,81.9]
[1737797817078,2.74,248.27,248.14,81.9]
[1737797818204,20.0,248.23,248.14,81.9]
[1737797818496,20.0,248.19,248.14,81.9]
[1737797820802,0.063,248.23,248.14,81.9]
[1737797825192,20.0,248.21,248.14,81.9]
[1737797827484,20.0,248.21,248.14,219.5]
[1737797827686,2.803,248.23,248.14,223.5299]
[1737797829305,2.803,248.23,248.14,219.5]
[1737797832009,20.0,248.19,248.14,81.9]
[1737797835518,2.803,248.23,248.14,81.9]
[1737797836614,2.803,248.23,248.14,219.5]
[1737797837720,20.0,248.19,248.14,219.5]
[1737797839423,2.803,248.23,248.14,219.5]
[1737797841599,0.063,248.23,248.15,6.9132]
[1737797842544,0.063,248.23,248.15,226.4132]
[1737797844023,0.063,248.23,248.16,1.8044]
[1737797846827,20.0,248.2,248.16,1.8044]
[1737797847711,20.0,248.2,248.15,219.5]
[1737797848224,20.0,248.2,248.13,0.03]
[1737797854237,20.0,248.16,248.13,0.03]
[1737797855130,0.063,248.23,248.13,0.03]
[1737797855431,23.776884,248.21,248.13,0.03]
[1737797855734,20.0,248.18,248.13,0.03]
[1737797869450,20.0,248.14,248.13,0.03]
[1737797870852,43.776884,248.14,248.13,0.03]
[1737797871352,16.123713,248.21,248.13,0.03]
[1737797871554,20.0,248.18,248.13,0.03]
[1737797872455,20.0,248.14,248.13,0.03]
[1737797881147,2.74,248.17,248.13,0.03]
[1737797881534,22.74,248.17,248.05,83.7657]
[1737797882660,20.0,248.09,248.05,1.8657]
[1737797886146,20.0,248.09,248.05,1.8957]
[1737797887874,20.0,248.06,248.05,0.03]
[1737797889379,1.62482102,248.15,248.05,0.03]
[1737797889667,20.0,248.15,248.05,0.03]
[1737797890044,4.37120778,248.17,248.05,0.03]
[1737797890240,20.0,248.15,248.05,0.03]
[1737797890446,2.74,248.14,248.05,0.03]
[1737797890749,20.0,248.1,248.05,0.03]
[1737797891157,2.74,248.15,248.05,219.53]
[1737797891563,2.74,248.17,248.06,1.7606]
[1737797894275,2.74,248.17,248.07,7.2947]
[1737797895879,2.74,248.17,248.07,226.7947]
[1737797896871,20.0,248.16,248.07,226.7947]
[1737797897245,20.0,248.12,248.07,226.7947]
[1737797899153,20.0,248.12,248.07,226.8247]
[1737797900669,2.803,248.17,248.07,226.8247]
[1737797900861,0.063,248.17,248.07,226.8247]
[1737797911181,20.0,248.14,248.07,219.53]
[1737797916582,20.0,248.14,248.07,0.03]
[1737797917082,20.0,248.1,248.07,0.03]
[1737797924787,23.776884,248.09,248.07,0.03]
[1737797927991,21.60861333,248.14,248.07,0.03]
[1737797928293,20.0,248.14,248.07,0.03]
[1737797928867,0.063,248.17,248.07,1.8756]
[1737797929070,0.063,248.17,248.07,139.4756]
[1737797929291,20.0,248.16,248.07,139.4756]
[1737797929490,0.063,248.17,248.07,139.4756]
[1737797930071,20.0,248.15,248.07,139.4756]
[1737797934386,20.0,248.15,248.07,1.8756]
[1737797937204,20.063,248.15,248.07,1.8756]
[1737797941903,20.0,248.11,248.07,1.8756]
[1737797943303,20.0,248.11,248.07,0.03]
[1737797958127,20.0,248.08,248.07,0.03]
[1737797958423,43.776884,248.08,248.07,0.03]
[1737797960322,0.063,248.15,248.07,0.03]
[1737797960689,20.0,248.14,248.07,0.03]
[1737797961716,20.0,248.1,248.07,0.03]
[1737797966305,19.0,248.1,248.07,0.03]
[1737797968023,0.063,248.13,248.07,0.03]
[1737797981828,20.0,248.1,248.07,0.03]
[1737797982845,23.839884,248.13,248.07,0.03]
[1737797983146,23.776884,248.09,248.07,0.03]
[1737797984522,20.0,248.08,248.07,0.0001]
[1737797986039,43.776884,248.08,248.05,0.0001]
[1737797986207,23.776884,248.07,248.05,0.0001]
[1737797986612,53.776884,248.06,248.05,0.0001]
[1737797992551,23.776884,248.06,248.05,0.0001]
[1737798000361,23.776884,248.05,248.0,0.125]
[1737798000547,23.776884,248.01,248.0,0.125]
[1737798000861,20.0,248.01,248.0,0.125]
[1737798001039,22.74,248.01,248.0,0.125]
[1737798001854,2.74,248.01,248.0,0.125]
[1737798002759,26.516884,248.01,248.0,0.125]
[1737798003642,20.0,247.98,247.97,0.03]
[1737798004045,43.776884,247.98,247.97,0.03]
[1737798005445,3.74,248.01,247.82,9.2735]
[1737798005446,22.74,248.01,247.82,9.2735]
[1737798005850,20.0,247.93,247.82,9.2735]
[1737798006052,23.776884,247.92,247.82,9.2735]
[1737798006241,20.0,247.89,247.8,0.03]
[1737798006651,20.0,247.88,247.8,0.03]
[1737798007072,20.0,247.89,247.8,0.03]
[1737798008971,10.65136517,248.03,247.8,0.03]
[1737798009143,2.74,248.02,247.81,9.2735]
[1737798009443,2.74,248.02,247.82,4.0351]
[1737798009766,20.0,247.96,247.82,4.0351]
[1737798009970,20.0,247.92,247.82,4.0351]
[1737798013447,20.0,247.92,247.82,4.4385099]
[1737798013647,30.0,247.87,247.82,4.4385099]
[1737798013961,30.0,247.87,247.82,4.0351]
[1737798014572,20.0,247.92,247.82,4.0351]
[1737798015667,23.776884,247.91,247.81,146.8735]
[1737798015875,20.0,247.88,247.81,146.8735]
[1737798017705,30.0,247.85,247.81,146.8735]
[1737798017852,30.0,247.85,247.81,9.2735]
[1737798019690,20.0,247.88,247.81,9.2735]
[1737798023173,20.0,247.88,247.81,9.3035]
[1737798023863,20.0,247.88,247.81,1.934]
[1737798025577,20.0,247.84,247.81,1.934]
[1737798025893,23.776884,247.83,247.81,0.03]
[1737798026286,23.776884,247.84,247.81,0.03]
[1737798026779,20.0,247.78,247.65,139.3926]
[1737798026975,20.0,247.74,247.65,1.7926]
[1737798027174,20.0,247.73,247.65,1.7926]
[1737798027975,20.0,247.69,247.65,1.7926]
[1737798028177,20.0,247.74,247.65,1.7926]
[1737798028769,2.74,247.82,247.66,0.40367947]
[1737798029396,2.74,247.82,247.65,143.4305]
[1737798030206,2.74,247.82,247.66,0.40366158]
[1737798030392,2.74,247.82,247.67,6.8913]
[1737798030572,2.74,247.82,247.68,0.40355888]
[1737798031397,2.74,247.82,247.71,27.813784]
[1737798031590,2.74,247.82,247.72,0.40348007]
[1737798031890,2.74,247.82,247.72,138.00348007]
[1737798032098,2.74,247.82,247.72,137.6]
[1737798032282,2.74,247.82,247.73,6.8913]
[1737798032491,2.74,247.82,247.75,4.0363]
[1737798034283,20.0,247.88,247.75,141.6363]
[1737798034490,2.74,247.91,247.77,1.7926]
[1737798034678,2.74,247.91,247.77,139.3926]
[1737798034979,2.74,247.91,247.78,0.4033902]
[1737798035178,0.063,247.97,247.78,25.1802742]
[1737798035382,2.74,247.96,247.78,162.7802742]
[1737798035603,2.74,247.95,247.78,162.376884]
[1737798036185,20.0,247.94,247.79,4.0356]
[1737798036901,20.0,247.9,247.79,4.4389902]
[1737798037094,20.0,247.9,247.79,142.0389902]
[1737798037292,20.0,247.9,247.8,7.526]
[1737798037494,20.0,247.91,247.81,4.43866874]
[1737798038008,0.063,247.97,247.81,142.03866874]
[1737798038207,0.063,247.97,247.82,26.96028685]
[1737798038519,0.063,247.97,247.82,2.18340285]
[1737798038683,20.063,247.97,247.82,1.7801]
[1737798040307,20.0,247.92,247.82,1.7801]
[1737798040510,20.0,247.88,247.82,1.7801]
[1737798041223,2.76,247.93,247.82,1.7801]
[1737798042901,20.0,247.89,247.82,1.7801]
[1737798045718,23.776884,247.92,247.82,1.7801]
[1737798045719,20.0,247.85,247.82,1.7801]
[1737798047214,20.0,247.85,247.76,1.7486]
[1737798047514,20.0,247.81,247.76,1.7486]
[1737798049502,19.85881108,247.81,247.76,1.7486]
[1737798050923,19.85881108,247.81,247.7,137.24401768]
[1737798051905,19.85881108,247.81,247.7,141.28101768]
[1737798052300,19.85881108,247.81,247.7,137.24401768]
[1737798052828,19.85881108,247.81,247.7,141.28101768]
[1737798053129,23.718696,247.89,247.71,0.40359263]
[1737798053130,16.209396,247.89,247.71,0.40359263]
[1737798053429,16.209396,247.89,247.71,219.54761031]
[1737798053731,20.0,247.85,247.71,219.14401768]
[1737798053928,20.0,247.85,247.73,7.207]
[1737798054117,20.0,247.85,247.73,8.9556]
[1737798054625,20.0,247.85,247.73,12.9922]
[1737798056211,16.209396,247.89,247.73,150.23621768]
[1737798056409,0.063,247.89,247.74,0.40347322]
[1737798056835,20.0,247.88,247.74,0.40347322]
[1737798057841,20.0,247.88,247.73,146.19961768]
[1737798058140,20.0,247.88,247.74,4.0364]
[1737798058336,20.0,247.85,247.73,146.19961768]
[1737798061521,20.0,247.85,247.74,0.40350815]
[1737798061720,0.063,247.89,247.74,0.40350815]
[1737798062717,20.0,247.88,247.73,146.19961768]
[1737798063554,20.0,247.82,247.73,146.19961768]
[1737798063757,20.0,247.82,247.73,8.9556]
[1737798064540,20.0,247.82,247.73,1.7486]
[1737798064929,20.0,247.78,247.68,139.05271768]
[1737798065128,20.0,247.78,247.68,1.8087]
[1737798065528,23.776884,247.77,247.68,1.8087]
[1737798065731,20.0,247.74,247.68,1.8087]
[1737798066246,20.0,247.74,247.66,0.03]
[1737798066423,20.0,247.7,247.66,0.03]
[1737798066916,20.0,247.78,247.66,0.03]
[1737798067428,20.0,247.74,247.66,0.03]
[1737798068640,23.776884,247.77,247.66,0.03]
[1737798069445,23.776884,247.79,247.66,0.03]
[1737798070749,20.0,247.76,247.66,0.03]
[1737798071448,2.78,247.8,247.66,0.03]
[1737798072048,20.0,247.76,247.67,1.8087]
[1737798072338,20.0,247.76,247.74,1.40909091]
[1737798073130,20.0,247.76,247.74,1.26790198]
[1737798074250,2.78,247.83,247.74,1.26790198]
[1737798076730,1.68677929,247.83,247.74,1.26790198]
[1737798076926,43.776884,247.82,247.74,1.26790198]
[1737798077144,23.776884,247.81,247.74,1.26790198]
[1737798077348,20.0,247.78,247.74,1.26790198]
[1737798077930,1.68677929,247.83,247.74,1.26790198]
[1737798078447,20.0,247.82,247.74,1.26790198]
[1737798082852,23.776884,247.85,247.74,1.26790198]
[1737798082853,0.063,247.89,247.75,9.11943548]
[1737798083155,0.063,247.89,247.76,23.776884]
[1737798083343,0.063,247.89,247.77,0.40339113]
[1737798083538,20.0,247.88,247.77,0.40339113]
[1737798083853,20.0,247.88,247.75,145.95991768]
[1737798084733,20.0,247.84,247.75,8.7159]
[1737798086161,20.0,247.88,247.75,8.7159]
[1737798086850,20.0,247.84,247.75,8.7159]
[1737798088141,0.063,247.89,247.76,0.40355277]
[1737798088342,0.063,247.89,247.75,145.95991768]
[1737798089257,23.839884,247.89,247.75,145.95991768]
[1737798089455,20.0,247.86,247.75,145.95991768]
[1737798090962,20.0,247.86,247.75,149.99611768]
[1737798091338,20.063,247.86,247.75,149.99611768]
[1737798092558,20.063,247.86,247.75,145.95991768]
[1737798093447,20.063,247.86,247.75,149.99611768]
[1737798093645,0.063,247.86,247.76,24.18034895]
[1737798093848,0.063,247.86,247.76,162.42436663]
[1737798094140,0.063,247.86,247.76,162.02090168]
[1737798094358,0.063,247.86,247.78,4.0358]
[1737798094750,0.063,247.86,247.79,0.4033868]
[1737798094952,0.063,247.86,247.79,137.64740448]
[1737798095162,0.063,247.86,247.8,24.776884]
[1737798095350,0.063,247.86,247.82,23.776884]
[1737798095552,0.063,247.86,247.83,0.4032943]
[1737798095937,0.063,247.86,247.84,7.6166]
[1737798096244,0.063,247.86,247.85,24.18016345]
[1737798096457,0.063,247.86,247.85,28.21476345]
[1737798096668,0.063,247.86,247.85,165.45878113]
[1737798096850,0.063,247.86,247.85,165.05550168]
[1737798097558,0.063,247.86,247.85,137.24401768]
[1737798097973,0.00977422,247.86,247.84,144.86061768]
[1737798099259,0.00977422,247.86,247.84,7.6166]
[1737798099453,0.00977422,247.86,247.81,1.8972]
[1737798102950,0.00977422,247.86,247.81,2.30056308]
[1737798103875,0.00977422,247.86,247.81,139.54458076]
[1737798104083,0.00977422,247.86,247.81,139.14121768]
[1737798104875,0.00977422,247.86,247.81,143.17651768]
[1737798105375,0.00977422,247.86,247.82,0.4033477]
[1737798105857,0.00977422,247.86,247.81,139.14121768]
[1737798106742,0.00977422,247.86,247.75,0.03]
[1737798106947,0.00977422,247.86,247.75,0.43348824]
[1737798108152,0.00977422,247.86,247.75,0.03]
[1737798110150,20.0,247.82,247.75,0.03]
[1737798110350,20.0,247.78,247.7,0.03]
[1737798110573,20.0,247.74,247.7,0.03]
[1737798110878,26.44849491,247.74,247.7,0.03]
[1737798116775,23.776884,247.73,247.7,0.03]
[1737798116988,23.776884,247.73,247.66,0.03]
[1737798116989,20.0,247.69,247.66,0.03]
[1737798121371,20.0,247.72,247.66,0.03]
[1737798121565,20.0,247.71,247.66,0.03]
[1737798122479,12.0527843,247.74,247.66,0.03]
[1737798122670,20.0,247.71,247.66,0.03]
[1737798126685,22.84,247.77,247.66,0.03]
[1737798127391,4.3784,247.79,247.66,0.03]
[1737798127987,1.5384,247.79,247.66,0.03]
[1737798128288,20.0,247.78,247.66,0.43360369]
[1737798128990,20.0,247.78,247.67,4.0376]
[1737798129377,9.4915,247.81,247.68,1.6141]
[1737798129882,10.85134925,247.84,247.68,1.6141]
[1737798130087,20.0,247.81,247.68,221.16167544]
[1737798130385,20.0,247.81,247.69,23.776884]
[1737798130584,20.0,247.81,247.7,0.40354538]
[1737798131683,20.0,247.81,247.7,4.44054538]
[1737798131884,5.03805277,247.84,247.7,141.68456306]
[1737798132091,5.03805277,247.84,247.7,141.28101768]
[1737798132294,5.03805277,247.84,247.71,0.40352476]
[1737798133194,20.0,247.84,247.71,0.40352476]
[1737798134792,20.0,247.84,247.71,4.44042476]
[1737798136679,20.0,247.84,247.71,141.68444244]
[1737798136881,20.0,247.84,247.71,141.28091768]
[1737798139293,0.00977422,247.86,247.72,24.18041297]
[1737798139593,0.00977422,247.86,247.72,25.18041297]
[1737798140791,0.00977422,247.86,247.74,23.776884]